Cogmind - Beta 13 *** ADVENTURER MODE // 2024.04.07 @ 17:39:37 Player: Phantom Result: Destroyed by S-27 Virus with Autogun Performance ------------- Evolutions (6) 3000 Regions Visited (13) 2600 Robots Destroyed (126) 630 Value Destroyed (4705) 4705 Prototype IDs (12) 240 Alien Tech Used (0) 0 Bonus (340) 340 TOTAL SCORE: 11515 Bonus ------- High Alert Combat Kills 35 Follower Combat Kills 92 Aligned with FarCom 300 Friendly Fire -87 Cogmind --------- Core Integrity 0/1150 Matter 72/300 Energy 57/100 System Corruption 24% Temperature Warm (106) Movement Core (150) Ox2 Location -4/Factory Parts ------- > --- POWER (4) -------- (None) > --- PROPULSION (5) --- (None) > --- UTILITY (6) ------ Advanced Transmission Jammer > --- WEAPON (4) ------- Phase Cannon > --- INVENTORY (5) ---- (None) Peak State ------------ > --- POWER ------------ Light Nuclear Core Light Nuclear Core Light Angular Momentum Engine > --- PROPULSION ------- Improved Airjet Improved Gravmag System Improved Gravmag System Improved Gravmag System Linear Gravjet > --- UTILITY ---------- Large Storage Unit Advanced Weight Redist. System Experimental Sensor Array Transmission Jammer Advanced ECM Suite > --- WEAPON ----------- Thermic Laser Advanced Plasma Cannon Coil Gun Heavy Machine Gun > --- INVENTORY -------- Light Nuclear Core Thermal Generator Advanced Heat Sink Matter Compressor Precision Matter Filter Phase Shifter Improved Light Armor Plating Force Field System Shield Arc Projector Cooled Pulse Rifle Plasma Cannon Phase Cannon Barrage Gun Heavy Flak Cannon [Rating: 85] Favorites ----------- Power Light Nuclear Core Engine Light Ion Engine Power Core Light Nuclear Core Reactor Antimatter Reactor Propulsion Improved Gravmag System Treads Improved Treads Leg Aluminum Leg Wheel Compact Wheel Hover Unit Improved Gravmag System Utility Large Storage Unit Device Advanced ECM Suite Storage Large Storage Unit Processor Improved Signal Interpreter Hackware Hacking Suite Protection Improved Light Armor Plating Weapon Particle Cannon Energy Gun Advanced Beam Rifle Energy Cannon Particle Cannon Ballistic Gun Barrage Gun Ballistic Cannon Assault Cannon Launcher Rocket Launcher Special Weapon Mining Laser Slashing Weapon Chainsword Build | -11 -10 -10 -10 -9 -8 -7 -7 -7 -6 -5 -4 -4 -4 ------- Run | Yrd Mat Min Exi Min Mat Fac Low Low Fac Fac Fac Was Fac Slots Evolved 12 | . . . . . 4 2 . . 2 2 2 . . Power 3 | . . . . . . 1 . . 1 . 1 . . Propulsion 3 | . . . . . 1 1 . . . 1 . . . Utility 4 | . . . . . 2 . . . 1 . 1 . . Weapon 2 | . . . . . 1 . . . . 1 . . . Parts Attached 258 | 5 18 11 2 7 10 67 9 1 60 39 22 2 5 Power 28 | 1 1 2 . . 1 8 . . 9 3 2 . 1 Engine 12 | 1 1 2 . . . 1 . . 6 . . . 1 Core 14 | . . . . . 1 7 . . 3 3 . . . Reactor 2 | . . . . . . . . . . . 2 . . Propulsion 37 | 2 5 2 . . . 8 2 . 7 2 7 1 1 Treads 5 | . 3 . . . . . . . . . . 1 1 Leg 13 | . 1 . . . . 8 2 . 1 . 1 . . Wheel 8 | 2 1 . . . . . . . . . 5 . . Hover 11 | . . 2 . . . . . . 6 2 1 . . Flight . | . . . . . . . . . . . . . . Utility 120 | . 7 3 1 . 6 30 4 . 35 21 11 1 1 Device 92 | . 4 2 1 . 3 23 3 . 26 18 10 1 1 Storage 4 | . 2 . . . . . . . . 1 1 . . Processor 3 | . . . . . 1 . . . 1 1 . . . Hackware 1 | . . . . . . 1 . . . . . . . Protection 20 | . 1 1 . . 2 6 1 . 8 1 . . . Artifact . | . . . . . . . . . . . . . . Weapon 73 | 2 5 4 1 7 3 21 3 1 9 13 2 . 2 Energy Gun 25 | 1 1 1 . 2 1 12 1 . 3 3 . . . Energy Cannon 15 | . 3 1 . 1 . 1 . . 2 6 . . 1 Ballistic Gun 6 | 1 . . . . . . 1 . 2 2 . . . Ballistic Cannon 12 | . 1 1 . . 2 3 1 1 2 1 . . . Launcher 2 | . . . . 1 . 1 . . . . . . . Special Weapon 12 | . . 1 1 3 . 3 . . . 1 2 . 1 Impact Weapon . | . . . . . . . . . . . . . . Slashing Weapon 1 | . . . . . . 1 . . . . . . . Piercing Weapon . | . . . . . . . . . . . . . . Special Melee Weapon . | . . . . . . . . . . . . . . Unidentified Prototypes 7 | . . . 1 . . 2 1 . 1 2 . . . Corrupted Parts 5 | . . . . . . . 4 . . . . 1 . System Corruption 19 | . . . . . . . 16 . . . . 3 . Parts Lost 54 | . . 3 . . 1 14 3 1 9 8 10 1 4 Power 13 | . . 2 . . . 4 . 1 3 1 1 . 1 Propulsion 20 | . . 1 . . . 4 2 . 3 3 5 . 2 Utility 9 | . . . . . 1 1 . . 1 2 3 1 . Weapon 12 | . . . . . . 5 1 . 2 2 1 . 1 Highest Loss Streak 7 | . . 2 . . 1 5 1 1 4 3 7 1 4 To Critical Strikes . | . . . . . . . . . . . . . . Average Slot Usage (%) 86 | . 96 97 100 100 86 89 77 72 92 85 33 12 9 Engine 5 | . 14 12 14 14 5 . . . 8 2 . . . Core 7 | . . . . . 3 11 15 12 6 13 . . . Treads 2 | . 24 16 . . . . . . . . . 3 6 Leg 9 | . . . . . . 22 22 23 3 . . . . Hover 10 | . . 10 28 28 18 2 . . 20 19 . . . Device 12 | . 14 6 10 14 16 10 7 7 17 19 14 5 2 Storage 7 | . 6 14 14 14 9 7 7 7 6 4 . 4 . Processor 2 | . . . . . . 6 . . 4 . . . . Protection 2 | . 3 7 4 . 9 1 1 . 2 . . . . Energy Gun 7 | . 2 5 . 10 6 14 7 7 6 4 . . . Energy Cannon 5 | . 16 13 14 13 . . 7 4 1 5 . . . Ballistic Gun 3 | . 1 . . . . . . 7 9 9 . . . Ballistic Cannon 3 | . 7 7 . . 8 3 6 1 1 . . . . Special Weapon 1 | . . 1 14 2 . . . . . . 2 . . Naked Turns 12 | . . . . . . . . . . 8 4 . . Heaviest Build 77 | 7 33 36 36 36 44 55 54 51 71 77 37 6 5 Greatest Support 80 | 20 46 46 24 24 24 61 44 35 49 57 80 75 75 Greatest Overweight (x) 22 | . . 2 1 1 1 2 5 1 3 22 4 1 1 Average Overweight (x) . | . . . 1 1 1 . 1 1 1 1 . . . Largest Inventory Capacity 15 | 5 15 15 15 15 15 15 15 15 15 15 5 5 5 Average Capacity 13 | 5 8 15 15 15 15 15 15 15 15 14 5 5 5 Most Carried 15 | 2 10 15 15 15 15 15 15 13 15 15 5 2 2 Average Carried 12 | . 5 12 14 14 14 14 12 12 12 13 1 . . Final Capacity 15 | 5 15 15 15 15 15 15 15 15 15 5 5 5 5 Final Carried 15 | . 10 15 15 14 15 15 13 12 14 5 1 . . Class Distribution -------------------- 35% | Scavenger-Skirmisher 21% | Mutant 15% | Skirmisher 8% | Infiltrator-Skirmisher 5% | Scavenger-Mutant 5% | Hacker-Skirmisher Dominant Class ---------------- Mutant | -10/Materials Mutant | -10/Mines Scavenger-Mutant | -10/Exiles Scavenger-Skirmisher | -9/Mines Scavenger-Skirmisher | -8/Materials Skirmisher | -7/Factory Scavenger-Skirmisher | -7/Lower Caves Scavenger-Skirmisher | -7/Lower Caves Skirmisher | -6/Factory Infiltrator-Skirmisher | -5/Factory Infiltrator-Mutant | -4/Factory Mutant | -4/Waste Mutant | -4/Factory Resources | -11 -10 -10 -10 -9 -8 -7 -7 -7 -6 -5 -4 -4 -4 ----------- Run | Yrd Mat Min Exi Min Mat Fac Low Low Fac Fac Fac Was Fac Matter Collected 4324 | 253 215 340 . 178 251 1032 252 4 1193 342 238 . 26 Remotely . | . . . . . . . . . . . . . . Salvage Created 4772 | 33 368 247 . 61 334 1680 328 . 1218 503 . . . Parts 259 | 1 21 6 . 2 28 93 15 . 61 32 . . . Haulers Intercepted 1 | . . . . . . 1 . . . . . . . Recyclers Shooed 3 | . . . . . 1 . . . 2 . . . . Parts Field Recycled . | . . . . . . . . . . . . . . Retrieved Matter . | . . . . . . . . . . . . . . Parts Self-Destructed 9 | . . . . . . . 9 . . . . . . Prevented 6 | . . . . . . . 6 . . . . . . Kills | -11 -10 -10 -10 -9 -8 -7 -7 -7 -6 -5 -4 -4 -4 ------- Run | Yrd Mat Min Exi Min Mat Fac Low Low Fac Fac Fac Was Fac Combat Hostiles Destroyed 95 | 1 8 9 . 3 9 30 6 . 21 8 . . . Guns 44 | 1 2 . . 1 2 15 3 . 18 2 . . . Cannons 39 | . 6 9 . 2 4 7 3 . 3 5 . . . AOE 10 | . . . . . 3 7 . . . . . . . Classes Destroyed 17 | 1 3 2 . . 3 5 2 . 1 . . . . Worker 7 | . . . . . 1 3 . . 2 1 . . . Builder 9 | . . . . . 4 4 . . . 1 . . . Hauler 1 | . . . . . . 1 . . . . . . . Recycler 6 | . 1 1 . . . 2 . . 1 1 . . . Mechanic 1 | . . . . . . 1 . . . . . . . Operator 2 | . . . . . . 2 . . . . . . . Watcher 11 | . 2 . . . 1 3 . . 4 1 . . . Swarmer 20 | . 3 . . 2 . 5 . . 6 4 . . . Grunt 40 | 1 5 1 . 1 7 15 3 . 7 . . . . Duelist 1 | . . . . . . . 1 . . . . . . Sentry 9 | . . . . . 2 3 1 . 2 1 . . . Demolisher 2 | . . 2 . . . . . . . . . . . Specialist 2 | . . . . . . . . . 2 . . . . Hunter 3 | . . . . . . . 1 . 2 . . . . Programmer 11 | . . . . . . 6 . . 2 3 . . . Heavy 1 | . . . . . . 1 . . . . . . . Assembled 6 | . . 6 . . . . . . . . . . . Best Kill Streak 8 | 1 4 6 . 2 7 8 4 . 4 8 . . . Combat Bots Only 6 | 1 3 6 . 2 3 3 4 . 3 6 . . . Max Kills in Single Turn 6 | 1 1 1 . 1 2 6 1 . 2 1 . . . Gunslinging 1 | . . . . . . . . . 1 . . . . Exploded 2 | . . . . . 1 2 . . . . . . . Melee . | . . . . . . . . . . . . . . Uniques/NPCs Destroyed . | . . . . . . . . . . . . . . Combat | -11 -10 -10 -10 -9 -8 -7 -7 -7 -6 -5 -4 -4 -4 -------- Run | Yrd Mat Min Exi Min Mat Fac Low Low Fac Fac Fac Was Fac Hostile Shots Fired 1019 | 1 27 32 . 19 27 303 61 15 223 80 116 6 109 Missed 319 | . 7 5 . 8 12 126 12 4 55 16 37 . 37 Damage Taken 9801 | 8 254 730 . 72 222 1794 745 123 1760 1625 1320 243 905 Core 2926 | . 38 144 . 16 71 242 90 24 215 933 823 34 296 Absorbed by Shields 397 | . . . . . . 168 . . 110 111 8 . . Redirected to Shielding 55 | . . 32 . . . 8 15 . . . . . . Ignored by Resistances 2742 | 2 81 198 . 24 61 588 213 34 547 295 367 64 268 Core Remaining (%) 56 | 100 . . . 20 87 . . 49 74 6 . . . Volleys Fired 256 | 1 23 20 . 8 16 84 19 . 56 27 . . 2 Largest 4 | 2 2 2 . 2 3 3 3 . 3 4 . . 1 Hottest 356 | 70 136 131 . 131 140 185 201 . 194 356 . . 85 Shots Fired 659 | 2 45 40 . 13 43 220 51 1 166 76 . . 2 Gun 403 | 2 16 9 . 5 7 163 24 1 135 41 . . . Cannon 226 | . 29 31 . 3 22 48 27 . 31 33 . . 2 Launcher 20 | . . . . . 14 6 . . . . . . . Special 10 | . . . . 5 . 3 . . . 2 . . . Kinetic 234 | 1 18 13 . . 22 40 12 1 102 25 . . . Thermal 311 | 1 27 27 . 8 7 111 20 . 64 44 . . 2 Explosive 20 | . . . . . 14 6 . . . . . . . Electromagnetic 84 | . . . . . . 60 19 . . 5 . . . Robot Hit Streak 24 | 2 18 10 . 13 16 24 11 . 18 10 . . 1 Robot Miss Streak 7 | . 1 2 . . 2 5 2 . 3 7 . . 1 Penetration Max 1 | . . . . . . . . . 1 . . . . Secondary Targets 5 | . . . . . . 3 . . 2 . . . . Max Gunslinging Chain 1 | . . . . . . 1 . . 1 . . . . Shots Hit Robots 462 | 2 32 27 . 12 27 161 36 . 120 44 . . 1 Core Hits 236 | 2 13 12 . 3 33 89 12 . 55 17 . . . Critical Kills . | . . . . . . . . . . . . . . Critical Parts Destroyed 1 | . . . . . . . . . 1 . . . . Critical Strikes 18 | . . 1 . . 1 11 . . 4 1 . . . Burn 12 | . . . . . . 8 . . 3 1 . . . Destroy 1 | . . . . . . . . . 1 . . . . Blast 3 | . . 1 . . 1 1 . . . . . . . Corrupt 2 | . . . . . . 2 . . . . . . . Melee Attacks . | . . . . . . . . . . . . . . Impact . | . . . . . . . . . . . . . . Slashing . | . . . . . . . . . . . . . . Piercing . | . . . . . . . . . . . . . . Sneak Attacks . | . . . . . . . . . . . . . . Combat Hostiles . | . . . . . . . . . . . . . . Follow-up Attacks . | . . . . . . . . . . . . . . Damage Inflicted 12384 | 24 548 561 . 149 1342 4900 817 . 2621 1392 . . 30 Guns 5673 | 24 196 118 . 87 118 2312 349 . 1950 519 . . . Cannons 3900 | . 352 443 . 62 390 854 430 . 671 668 . . 30 Explosions 2805 | . . . . . 834 1734 38 . . 199 . . . Melee . | . . . . . . . . . . . . . . Ramming 6 | . . . . . . . . . . 6 . . . Kinetic 3464 | 12 158 113 . . 390 688 185 . 1532 386 . . . Thermal 6213 | 12 390 448 . 149 118 2642 339 . 1089 996 . . 30 Explosive 1572 | . . . . . 834 738 . . . . . . . Electromagnetic 1129 | . . . . . . 832 293 . . 4 . . . Impact . | . . . . . . . . . . . . . . Slashing . | . . . . . . . . . . . . . . Piercing . | . . . . . . . . . . . . . . Highest Corruption 24 | . . 3 3 3 . 5 21 21 . 11 13 24 24 Average Corruption 8 | . . 3 3 3 . 2 17 21 . 6 7 18 24 Corruption Purged . | . . . . . . . . . . . . . . Corruption Blocked . | . . . . . . . . . . . . . . Effects 167 | . . 4 14 7 . 20 38 42 . 18 6 8 10 Message Errors 29 | . . . 3 2 . 2 7 10 . 3 . . 2 Matter Fused 49 | . . 3 7 3 . 5 9 8 . 6 1 4 3 Heat Flow Errors 16 | . . . 1 1 . 1 6 4 . 1 1 . 1 Energy Discharges 21 | . . . 1 . . 4 5 8 . 1 1 . 1 Parts Rejected 3 | . . . . . . 1 . . . . 2 . . Data Loss (minor) 21 | . . 1 1 . . 4 4 7 . 2 . 2 . Data Loss (major) 4 | . . . . . . 1 . 2 . 1 . . . Misfires 6 | . . . . . . 1 2 1 . 2 . . . Alerts 8 | . . . 1 1 . 1 2 2 . 1 . . . Misdirections 6 | . . . . . . . . . . . 1 2 3 Weapon Failures 4 | . . . . . . . 3 . . 1 . . . Overload Shots . | . . . . . . . . . . . . . . Overflow Damage 363 | . 11 12 . . 36 205 1 . 2 96 . . . Projectiles 79 | . 11 12 . . 15 . 1 . 2 38 . . . Explosions 284 | . . . . . 21 205 . . . 58 . . . Melee . | . . . . . . . . . . . . . . Knockbacks 20 | . . 1 . . 4 7 2 . 1 5 . . . Impact . | . . . . . . . . . . . . . . Kinetic 18 | . . 1 . . 4 6 2 . 1 4 . . . Secondary 2 | . . . . . . 1 . . . 1 . . . Self-Inflicted Damage 334 | . . . . . 29 142 24 . . 139 . . . Shots 11 | . . . . . 2 6 1 . . 2 . . . Rammed 4 | . 1 . . . . . . . . 3 . . . Targets Rammed 4 | . 1 . . . . . . . . 3 . . . Kicked . | . . . . . . . . . . . . . . Crushed . | . . . . . . . . . . . . . . Highest Temperature 1378 | 9 322 307 249 147 195 511 383 244 523 1378 118 . 196 Average Temperature 170 | 6 97 104 127 71 71 138 130 100 150 471 75 . 127 Received Heat Transfer 1491 | 6 90 80 . 18 117 422 297 12 432 17 . . . Effects 98 | . 2 . . . . 9 2 . 8 77 . . . Shutdowns 31 | . . . . . . 2 . . 5 24 . . . Energy Bleed 7 | . . . . . . 2 1 . . 4 . . . Interference 13 | . 1 . . . . . . . 2 10 . . . Matter Decay 5 | . . . . . . 1 1 . . 3 . . . Short Circuit 13 | . 1 . . . . . . . 1 11 . . . Damage (minor) 8 | . . . . . . 1 . . . 7 . . . Damage (major) 17 | . . . . . . 3 . . . 14 . . . Damage (core) 4 | . . . . . . . . . . 4 . . . Siege Activations . | . . . . . . . . . . . . . . Robots Corrupted . | . . . . . . . . . . . . . . Combat Hostiles . | . . . . . . . . . . . . . . Parts Fried 5 | . . . . . . 4 1 . . . . . . Impact Corruptions . | . . . . . . . . . . . . . . Robots Melted 2 | . . . . . . 1 . . . 1 . . . Combat Hostiles 2 | . . . . . . 1 . . . 1 . . . Parts Melted 17 | . . 1 . . . 8 1 . 6 1 . . . Heat Transferred 10568 | 37 814 851 . 296 259 4191 481 . 2243 1359 . . 37 Parts Sabotaged . | . . . . . . . . . . . . . . Parts Stolen . | . . . . . . . . . . . . . . Parts Stripped . | . . . . . . . . . . . . . . Power Chain Reactions 3 | . . . . . . 2 1 . . . . . . Alert | -11 -10 -10 -10 -9 -8 -7 -7 -7 -6 -5 -4 -4 -4 ------- Run | Yrd Mat Min Exi Min Mat Fac Low Low Fac Fac Fac Was Fac Peak Influence 514 | 20 206 76 . 93 238 514 . . 165 365 152 15 15 Initial 152 | . 11 41 . . 16 92 . . . 42 152 14 2 Average 115 | 9 120 40 . 32 111 219 . . 62 95 126 7 2 Maximum Alert Level 2 | . 1 . . . 1 2 . . . 1 . . . Low Security (%) 80 | 100 86 100 . 100 79 46 . . 100 82 100 100 100 Level 1 16 | . 13 . . . 20 42 . . . 17 . . . Level 2 3 | . . . . . . 11 . . . . . . . Level 3 . | . . . . . . . . . . . . . . Level 4 . | . . . . . . . . . . . . . . Level 5 . | . . . . . . . . . . . . . . High Security . | . . . . . . . . . . . . . . Max Security . | . . . . . . . . . . . . . . Squads Dispatched 29 | . 1 . . 1 2 16 . . 7 2 . . . Investigation 7 | . 1 . . 1 2 2 . . 1 . . . . Extermination 9 | . . . . . . 5 . . 2 2 . . . Reinforcement 9 | . . . . . . 5 . . 4 . . . . Assault . | . . . . . . . . . . . . . . Garrison 4 | . . . . . . 4 . . . . . . . Intercept . | . . . . . . . . . . . . . . Searches Triggered . | . . . . . . . . . . . . . . Construction Impeded 2 | . . . . . . 2 . . . . . . . Haulers Reinforced 1 | . . . . . . . . . 1 . . . . Active Scanning Responses . | . . . . . . . . . . . . . . Cargo Convoy Interrupts 1 | . . . . . . 1 . . . . . . . Stealth | -11 -10 -10 -10 -9 -8 -7 -7 -7 -6 -5 -4 -4 -4 --------- Run | Yrd Mat Min Exi Min Mat Fac Low Low Fac Fac Fac Was Fac Distress Signals 5 | . 1 . . . 1 1 . . 1 . 1 . . Communications Jammed 1 | . . . . . . 1 . . . . . . . Distress Signals . | . . . . . . . . . . . . . . Times Spotted 170 | 1 16 14 . 10 13 46 8 1 29 12 9 5 6 Peak Tracking Total 8 | 1 5 6 . 3 3 5 5 1 4 3 8 5 5 Tactical Retreats 16 | . 1 2 . . 2 4 2 1 3 . . . 1 Traps | -11 -10 -10 -10 -9 -8 -7 -7 -7 -6 -5 -4 -4 -4 ------- Run | Yrd Mat Min Exi Min Mat Fac Low Low Fac Fac Fac Was Fac Traps Triggered 9 | . 3 . . . . 1 . . 1 . 2 . 2 Indirectly . | . . . . . . . . . . . . . . Trap Hack Attempts . | . . . . . . . . . . . . . . Triggered . | . . . . . . . . . . . . . . Disarmed . | . . . . . . . . . . . . . . Reprogrammed . | . . . . . . . . . . . . . . Reused . | . . . . . . . . . . . . . . Traps Extracted . | . . . . . . . . . . . . . . Installed . | . . . . . . . . . . . . . . Triggered 2 | . . . . . . 2 . . . . . . . Machines | -11 -10 -10 -10 -9 -8 -7 -7 -7 -6 -5 -4 -4 -4 ---------- Run | Yrd Mat Min Exi Min Mat Fac Low Low Fac Fac Fac Was Fac Machines Disabled 28 | . 1 . . . 2 18 1 . . 5 . . 1 Max in Single Turn 15 | . 1 . . . 1 15 1 . . 4 . . 1 Machines Repaired . | . . . . . . . . . . . . . . Machines Dismantled . | . . . . . . . . . . . . . . Machines Sabotaged . | . . . . . . . . . . . . . . Overloaded Fab Kills . | . . . . . . . . . . . . . . Hacking | -11 -10 -10 -10 -9 -8 -7 -7 -7 -6 -5 -4 -4 -4 --------- Run | Yrd Mat Min Exi Min Mat Fac Low Low Fac Fac Fac Was Fac Machines Accessed 40 | . 4 2 4 1 4 8 . . 9 6 2 . . Terminals 25 | . 4 1 . 1 3 8 . . 6 1 1 . . Fabricators 5 | . . . . . . . . . 2 3 . . . Repair Stations 1 | . . . . . . . . . . 1 . . . Recycling Units . | . . . . . . . . . . . . . . Scanalyzers 3 | . . . . . 1 . . . 1 . 1 . . Garrison Access 1 | . . . . . . . . . . 1 . . . Total Hacks 138 | . 15 7 49 5 14 21 . . 15 8 4 . . Successful 101 | . 9 6 49 3 9 9 . . 8 5 3 . . Failed 36 | . 6 1 . 1 5 12 . . 7 3 1 . . Catastrophic 4 | . 1 . . 1 . . . . 1 1 . . . Database Lockouts 1 | . . . . 1 . . . . . . . . . Manual 4 | . 1 1 1 1 . . . . . . . . . Terminals 67 | . 15 6 . 5 11 21 . . 7 1 1 . . Fabricators 8 | . . . . . . . . . 5 3 . . . Repair Stations 3 | . . . . . . . . . . 3 . . . Recycling Units . | . . . . . . . . . . . . . . Scanalyzers 9 | . . . . . 3 . . . 3 . 3 . . Garrison Access 1 | . . . . . . . . . . 1 . . . Terminal Hacks 86 | . 9 6 49 3 7 9 . . 2 1 . . . Record 68 | . 2 5 49 3 4 4 . . . 1 . . . Part Schematic 1 | . . . . . . 1 . . . . . . . Prototype ID Bank 2 | . 2 . . . . . . . . . . . . Open Door 1 | . . 1 . . . . . . . . . . . Open DSF 1 | . . . . . . . . . 1 . . . . Branch Access Points 2 | . 1 . . . . 1 . . . . . . . Emergency Access Points 1 | . . . . . . . . . 1 . . . . Scanalyzer Index 1 | . . . . . . 1 . . . . . . . Alert Level 4 | . 2 . . . 1 1 . . . . . . . Dispatch Records 2 | . . . . . 1 1 . . . . . . . Investigation Status 1 | . . . . . 1 . . . . . . . . Hauler Manifests 1 | . 1 . . . . . . . . . . . . Registered Components 1 | . 1 . . . . . . . . . . . . Fabricator Hacks 5 | . . . . . . . . . 3 2 . . . Load Schematic 2 | . . . . . . . . . 2 . . . . Build 3 | . . . . . . . . . 1 2 . . . Repair Station Hacks 1 | . . . . . . . . . . 1 . . . Scan Component 1 | . . . . . . . . . . 1 . . . Recycling Unit Hacks . | . . . . . . . . . . . . . . Scanalyzer 8 | . . . . . 2 . . . 3 . 3 . . Insert Component 3 | . . . . . 1 . . . 1 . 1 . . Analyze 5 | . . . . . 1 . . . 2 . 2 . . Garrison Access Hacks 1 | . . . . . . . . . . 1 . . . Coupler Status 1 | . . . . . . . . . . 1 . . . Unauthorized Hacks . | . . . . . . . . . . . . . . Terminals . | . . . . . . . . . . . . . . Fabricators . | . . . . . . . . . . . . . . Repair Stations . | . . . . . . . . . . . . . . Recycling Units . | . . . . . . . . . . . . . . Scanalyzers . | . . . . . . . . . . . . . . Garrison Access . | . . . . . . . . . . . . . . Data Cores Recovered 1 | . . . . . . 1 . . . . . . . Used . | . . . . . . . . . . . . . . Hacking Detections 24 | . 3 1 . 1 3 7 . . 5 3 1 . . Full Trace Events 9 | . 2 1 . 1 2 2 . . 1 . . . . Feedback Events . | . . . . . . . . . . . . . . Feedback Blocked . | . . . . . . . . . . . . . . Robot Schematics Acquired . | . . . . . . . . . . . . . . Robots Built . | . . . . . . . . . . . . . . Authchips . | . . . . . . . . . . . . . . Time . | . . . . . . . . . . . . . . Total Robot Build Rating . | . . . . . . . . . . . . . . Part Schematics Acquired 4 | . . . . . 1 1 . . 1 . 1 . . Parts Built 4 | . . . . . . . . . 1 3 . . . Authchips . | . . . . . . . . . . . . . . Time 224 | . . . . . . . . . 102 122 . . . Total Part Build Rating 29 | . . . . . . . . . 8 21 . . . Parts Repaired . | . . . . . . . . . . . . . . Time . | . . . . . . . . . . . . . . Parts Recycled . | . . . . . . . . . . . . . . Recycled Matter . | . . . . . . . . . . . . . . Retrieved Matter . | . . . . . . . . . . . . . . Retrieved Components . | . . . . . . . . . . . . . . Parts Scanalyzed 3 | . . . . . 1 . . . 1 . 1 . . Part Schematics Acquired 3 | . . . . . 1 . . . 1 . 1 . . Parts Damaged . | . . . . . . . . . . . . . . Bothacking | -11 -10 -10 -10 -9 -8 -7 -7 -7 -6 -5 -4 -4 -4 ------------ Run | Yrd Mat Min Exi Min Mat Fac Low Low Fac Fac Fac Was Fac Used RIF Installer . | . . . . . . . . . . . . . . Robots Hacked 2 | . . . . . . 1 . . . 1 . . . Non-combat . | . . . . . . . . . . . . . . Combat 2 | . . . . . . 1 . . . 1 . . . Robot Hacks Applied 2 | . . . . . . 1 . . . 1 . . . parse_system 2 | . . . . . . 1 . . . 1 . . . Relay Couplers Released . | . . . . . . . . . . . . . . Fabnet Peak Effective % . | . . . . . . . . . . . . . . Robots Rewired . | . . . . . . . . . . . . . . Allies Hacked . | . . . . . . . . . . . . . . Hacks Repelled . | . . . . . . . . . . . . . . Allies | -11 -10 -10 -10 -9 -8 -7 -7 -7 -6 -5 -4 -4 -4 -------- Run | Yrd Mat Min Exi Min Mat Fac Low Low Fac Fac Fac Was Fac Total Allies 11 | . . 6 . 4 . . . . . . . 1 . Largest Group 3 | . . 3 3 3 2 . . . . . . 1 . Highest-Rated Group 81 | . . 81 81 25 15 . . . . . . 46 . Highest-Rated Ally 46 | . . 31 31 10 8 . . . . . . 46 . Total Orders . | . . . . . . . . . . . . . . Ally Attacks 68 | . . 40 . 19 3 . . . . . . 6 . Total Damage 930 | . . 455 . 295 12 . . . . . . 168 . Kills 10 | . . 6 . 4 . . . . . . . . . Allies Corrupted . | . . . . . . . . . . . . . . Allies Melted . | . . . . . . . . . . . . . . Field Lobotomies 4 | . . . . 4 . . . . . . . . . Intel | -11 -10 -10 -10 -9 -8 -7 -7 -7 -6 -5 -4 -4 -4 ------- Run | Yrd Mat Min Exi Min Mat Fac Low Low Fac Fac Fac Was Fac Robot Analysis Total . | . . . . . . . . . . . . . . Derelict Logs Recovered 3 | . . 1 . 1 . . 1 . . . . . . Drone Launches . | . . . . . . . . . . . . . . Drone Recoveries . | . . . . . . . . . . . . . . Exploration | -11 -10 -10 -10 -9 -8 -7 -7 -7 -6 -5 -4 -4 -4 ------------- Run | Yrd Mat Min Exi Min Mat Fac Low Low Fac Fac Fac Was Fac Turns Passed 11746 | 96 725 925 771 632 559 2657 895 888 1813 1125 389 121 150 Spaces Moved 6883 | 106 366 524 522 377 282 1472 419 467 1080 745 324 93 106 Core 259 | 21 . . . . . . . . . 57 115 35 31 Treads 739 | . 308 298 . . . . . . . . . 58 75 Legs 2355 | . 3 . . . . 1301 419 467 137 . 28 . . Wheels 318 | 85 55 . . . . . . . . . 178 . . Hover 3212 | . . 226 522 377 282 171 . . 943 688 3 . . Flight . | . . . . . . . . . . . . . . Fastest Speed 45 | 50 80 147 147 147 147 120 190 190 45 50 50 100 50 Average Speed 138 | 74 147 158 147 147 147 140 192 190 110 107 102 128 120 Slowest Speed 1150 | 80 160 240 147 147 147 260 470 190 260 1150 250 145 145 Overloaded Moves . | . . . . . . . . . . . . . . Propulsion Burnouts . | . . . . . . . . . . . . . . Robots Hopped . | . . . . . . . . . . . . . . Cave-ins Triggered . | . . . . . . . . . . . . . . Exploration Rate (%) 40 | 8 59 87 73 56 23 40 65 49 19 10 11 71 2 Regions Visited 13 Branch Regions 5 Pre-discovered Areas 2 | . . . 1 1 . . . . . . . . . Known Exits Taken 6 | . 1 1 . . 1 1 1 1 . . . . . Unknown Exits Taken 5 | 1 . . 1 1 . . . . 1 1 . . . Scrap Searched 6 | . . 1 . 1 . . 4 . . . . . . Spaces Dug . | . . . . . . . . . . . . . . Terrain Destroyed 296 | . . 3 . . 121 76 5 1 3 87 . . . Melee . | . . . . . . . . . . . . . . Projectile 29 | . . 3 . . 1 3 5 1 3 13 . . . AOE 267 | . . . . . 120 73 . . . 74 . . . Terrain Rammed . | . . . . . . . . . . . . . . Walls Destroyed . | . . . . . . . . . . . . . . Machines Disabled . | . . . . . . . . . . . . . . Actions | -11 -10 -10 -10 -9 -8 -7 -7 -7 -6 -5 -4 -4 -4 --------- Run | Yrd Mat Min Exi Min Mat Fac Low Low Fac Fac Fac Was Fac Total 8548 | 121 505 576 525 436 392 1867 468 468 1570 1015 386 95 124 Wait 924 | 5 67 7 . 37 73 191 14 . 332 170 19 . 9 Move 6871 | 105 365 523 521 376 281 1471 418 466 1079 744 324 92 106 Hop . | . . . . . . . . . . . . . . Pick Up 131 | 5 21 11 1 4 7 28 4 . 27 12 8 1 2 Fast Attach 28 | . . 1 . . . 11 . . 3 4 6 . 3 Attach 102 | 5 7 3 . 1 4 17 6 1 22 16 16 2 2 Detach 17 | . 1 . . . 1 1 2 . 3 2 7 . . Swap 128 | . 11 7 2 6 6 39 3 . 35 19 . . . Drop 86 | . 9 4 1 4 4 25 2 . 13 18 6 . . Fire 256 | 1 23 20 . 8 16 84 19 . 56 27 . . 2 Melee . | . . . . . . . . . . . . . . Ram 3 | . . . . . . . . . . 3 . . . Kick . | . . . . . . . . . . . . . . Crush 1 | . 1 . . . . . . . . . . . . Escape Stasis . | . . . . . . . . . . . . . . Rewire 1 | . . . . . . . . 1 . . . . . Trap . | . . . . . . . . . . . . . . Miscellaneous . | . . . . . . . . . . . . . . Route ------- -11/Scrapyard -10/Materials (discovered 3 exits: [*Mat] / *Min x2) -10/Mines (discovered 2 exits: [*Mat] / *Exi) -10/Exiles (discovered 2 exits: *Min x2) -9/Mines -8/Materials (discovered 2 exits: *Fac / [*Sto]) -7/Factory (discovered 2 exits: *Low x2) -7/Lower Caves -7/Lower Caves -6/Factory -5/Factory -4/Factory -4/Waste -4/Factory History --------- Turn | Location | Event 2 | -11/Scrapyard | Met Revision 17 46 | -11/Scrapyard | Discovered new exit (range 8) 97 | -11/Scrapyard | Entered Materials 118 | -10/Materials | Identified exit to Mines 302 | -10/Materials | Build established: Mutant 425 | -10/Materials | Discovered new exit (range 16) 822 | -10/Materials | Entered Mines 860 | -10/Mines | Assisted by bots powering up and referring to "LRC-V3" 868 | -10/Mines | Met a Derelict bent on vengeance 1007 | -10/Mines | Met a Derelict who couldn't figure out how to use a Trap Extractor 1190 | -10/Mines | Assembled infested the area 1327 | -10/Mines | Core integrity fell below 50% 1540 | -10/Mines | Identified exit to Exiles 1573 | -10/Mines | Discovered new exit (range 5) 1651 | -10/Mines | Received a Mining Laser from a helpful Derelict 1736 | -10/Mines | Deemed a non-threat by the Exiles lab entrance 1747 | -10/Mines | Entered Exiles 1747 | -10/Exiles | Accompanied by 3 allies 1777 | -10/Exiles | Led the pair of lost Derelicts to a safe place 1784 | -10/Exiles | Discovered new exit (range 15) 1837 | -10/Exiles | Met 8R-AWN 1864 | -10/Exiles | Met EX-HEX 1918 | -10/Exiles | Met EX-DEC 1967 | -10/Exiles | Learned location of Zion (-7) 2049 | -10/Exiles | Discovered new exit (range 14) 2162 | -10/Exiles | Met EX-BIN 2193 | -10/Exiles | Aligned with FarCom system 2194 | -10/Exiles | Given EX-Vault access code 2273 | -10/Exiles | Build established: Scavenger-Mutant 2283 | -10/Exiles | Opened EX-Vault 2295 | -10/Exiles | Found Prototype Special Weapon 2296 | -10/Exiles | Identified Field Lobotomy Kit 2336 | -10/Exiles | Warned to stay clear of 0b10 Research branches 2518 | -10/Exiles | Left Exiles lab with Field Lobotomy Kit 2518 | -10/Exiles | Entered Mines 2518 | -9/Mines | Assimilated B-36 Bruiser with FLK Orb 2521 | -9/Mines | Assimilated G-34 Mercenary with FLK Orb 2588 | -9/Mines | Found a damaged Exp. Sensor Array with a note attached 2594 | -9/Mines | Found Prototype Device 2822 | -9/Mines | Build established: Scavenger-Skirmisher 2959 | -9/Mines | Assimilated G-34 Mercenary with FLK Orb 3032 | -9/Mines | Discovered new exit (range 7) 3039 | -9/Mines | Central database locked down 3041 | -9/Mines | Assimilated G-34 Mercenary with FLK Orb 3085 | -9/Mines | Received a Rocket Launcher from a helpful Derelict 3150 | -9/Mines | Entered Materials 3150 | -8/Materials | Accompanied by 2 allies 3150 | -8/Materials | Evolved 4 slots: Propulsion x1, Utility x2, Weapon x1 3420 | -8/Materials | Discovered new exit (range 10) 3420 | -8/Materials | Discovered new exit (range 14) 3452 | -8/Materials | Identified Exp. Sensor Array 3706 | -8/Materials | Identified exit to Factory 3709 | -8/Materials | Entered Factory 3709 | -7/Factory | Evolved 2 slots: Power x1, Propulsion x1 4010 | -7/Factory | Build established: Skirmisher 4320 | -7/Factory | Build established: Hacker-Skirmisher 4842 | -7/Factory | Cargo convoy interrupted 5005 | -7/Factory | Garrison activated, responded to threat 5105 | -7/Factory | Garrison activated, responded to threat 5188 | -7/Factory | Build established: Skirmisher 5574 | -7/Factory | Identified exit to Lower Caves 5800 | -7/Factory | Build established: Scavenger-Skirmisher 6359 | -7/Factory | Lost 5 parts (1p1n1u2w) 6365 | -7/Factory | Found Corrupted Prototype Device 6366 | -7/Factory | Entered Lower Caves 6383 | -7/Lower Caves | Encountered a Warlord checkpoint 6477 | -7/Lower Caves | Attracted the attention of an 0b10 outpost 6540 | -7/Lower Caves | Identified Active Sensor Suite 6545 | -7/Lower Caves | System corruption reached 10% 6612 | -7/Lower Caves | Identified exit to Lower Caves 7261 | -7/Lower Caves | Entered another Lower Caves area 7286 | -7/Lower Caves | Discovered new exit (range 9) 7803 | -7/Lower Caves | Encountered a Warlord checkpoint 7876 | -7/Lower Caves | Spotted B-75 Beast 7880 | -7/Lower Caves | Core integrity fell below 50% 8147 | -7/Lower Caves | Identified exit to Factory 8149 | -7/Lower Caves | Entered Factory 8149 | -6/Factory | Evolved 2 slots: Power x1, Utility x1 8368 | -6/Factory | Lost 4 parts (1p2n1w) 8787 | -6/Factory | Fabricated Exp. Sensor Array? 9094 | -6/Factory | Lost 3 parts (1p1n1w) 9483 | -6/Factory | Build established: Skirmisher 9925 | -6/Factory | Discovered new exit (range 8) 9962 | -6/Factory | Entered another Factory area 9962 | -5/Factory | Evolved 2 slots: Propulsion x1, Weapon x1 10512 | -5/Factory | Fabricated Imp. Recalibrator (x2) 10615 | -5/Factory | Fabricated Enh. Nova Cannon? 10862 | -5/Factory | Build established: Infiltrator-Skirmisher 10912 | -5/Factory | Core integrity fell below 50% 10918 | -5/Factory | Lost 3 parts (1p1n1u) 11019 | -5/Factory | System corruption reached 10% 11026 | -5/Factory | Core integrity fell below 20% 11041 | -5/Factory | Released all parts (10) 11077 | -5/Factory | Discovered new exit (range 7) 11087 | -5/Factory | Entered another Factory area 11087 | -4/Factory | Evolved 2 slots: Power x1, Utility x1 11415 | -4/Factory | Lost 7 parts (1p4n1u1w) 11424 | -4/Factory | System corruption reached 10% 11451 | -4/Factory | Core integrity fell below 50% 11463 | -4/Factory | Lost 3 parts (1n2u) 11476 | -4/Factory | Sucked down chute 11476 | -4/Factory | Entered Waste 11477 | -4/Waste | Met a frightened Derelict 11487 | -4/Waste | Spotted C-40 Crusher 11491 | -4/Waste | EMP discharged 11525 | -4/Waste | Spotted C-40 Crusher 11543 | -4/Waste | Spotted C-40 Crusher 11548 | -4/Waste | Spotted C-40 Crusher 11554 | -4/Waste | Spotted C-40 Crusher 11577 | -4/Waste | Spotted C-40 Crusher 11583 | -4/Waste | Discovered new exit (range 10) 11587 | -4/Waste | Crushed by Compactor (0 parts destroyed, 1 dropped) 11591 | -4/Waste | EMP discharged 11597 | -4/Waste | Entered Factory 11711 | -4/Factory | Core integrity fell below 20% 11734 | -4/Factory | Build established: Mutant 11747 | -4/Factory | Destroyed by S-27 Virus with Autogun Last Messages --------------- M-28 Smith suffers critical hit (Destroy). M-28 Smith destroyed. Lgt. Ion Engine destroyed. Welding Torch destroyed. Triggered Gamma Bomb Trap. A bubble of electromagnetic force engulfs the area. U-05 Engineer lays Concrete. System corrupted: Matter fused (-6). U-05 Engineer lays Concrete. System corrupted: Heat flow error (+239). Adv. Medium Treads destroyed. ALERT: Security rotation in progress. Acquired Phase Cannon. Repair Station disabled. Backup Propulsion III tumbles out of repair station. Backup Plating III tumbles out of repair station. Backup Power III tumbles out of repair station. [Achievement: First Step to Greatness] [Achievement: 5k Club] [Achievement: 10k Club] Map ----- +----------------------------------------------------+ | | | | | | | | | | | | | | | | | | | ?????????????????????????????????????? | | ?????????????????????????????????????? | | ?????????????????????????????????????? | | ?????????????????????????????????????? | | ?????????????????????????????????????? | | ?????????????????????????????????????? | | ?????????????????????????????????????? | | ?????????????????????????????????????? | | ?????????????????????????????????????? | | ?????????????????????????????????????? | | ????????????????###########??????????? | | ????????????????# #??????????? | | ????????????????# #??????????? | | ????????????????# #??????????? | | ????????????????# #??????????? | | ????????????????# " ""s #??????????? | | ????????????????# "R" @#??????????? | | ????????????????# """=! #??????????? | | ????????????????# ssss #??????????? | | ????????????????####/###########?????? | | ????????????????# #?????? | | ????????????????# #?????? | | ????????????????# #?????? | | ????????????????# #?????? | | ????? ??????????# #?????? | | ??# ??????????# ##############?? | | ??# ??????????# # #?? | | ??# ?????????# # #?? | | ??# ?????????# + #?? | | ??# ?????????# # #?? | | ??# ????????# # #?? | | ??# ????????# # #?? | | ??# ????????# # #?? | | ??# ######### # #?? | | ??# %* # #?? | | ??# = ^ # #?? | | ??# ^ # #?? | | ??# ^ # #?? | | ??# ! ! ##############?? | | ??####+######"#########??????????????? | | ???????????# #????????????????? | +----------------------------------------------------+ Best States ------------- Heat Dissipation 59 Coolant Potential 65 Energy Generation 36 Energy Capacity 605 Matter Stores 300 Matter Capacity 550 Sight Range 16 Robot Scan Range 20 Terrain Scan Range 14 Terrain Scan Density 85 ECM Strength 2 Jamming Range 16 Additional Mass Support 9 Armor Coverage 300 Resistance: KI 20 Resistance: TH 20 Resistance: EX 20 Resistance: EM 20 Resistance: I 20 Resistance: S 20 Resistance: P 20 Core Shielding 20 Phase Shifting 5 Evasion (%) 55 Core Analysis 6 Recoil Reduction 2 Matter Filtering 50 Offensive Hacking 20 Item Schematics ----------------- Exp. Sensor Array | -8/Materials | Scanalyzed Lyr. Heavy Armor Plating | -7/Factory | Hacked Phase Shifter | -6/Factory | Scanalyzed Imp. Force Field | -4/Factory | Scanalyzed Robot Schematics ------------------ None Fabricated ------------ Exp. Sensor Array | x1 | -6/Factory Imp. Recalibrator | x2 | -5/Factory | Preloaded Enh. Nova Cannon | x1 | -5/Factory | Preloaded Alien Tech Used ----------------- None Achievements -------------- 10k Club 5k Club Close Call Crack Shot First Step to Greatness I Spy I Survived The Infestation It Was An Accident, I Swear It's Just You Just What I Needed Librarian Loot Pinata Made in Tau Ceti IV One Hack Too Far Please Form A Line Remodeling Risk Taker Safety First Serviceable Loadout Shopping List Storm Trooper System Compromised Tourist Troublemaker Uninvited Guest Challenges ------------ None Game ------ Seed LinearRemoteFemtoactuators Manual? 0 Play Time 04:44:52 Cumulative 4.7 hours Start 2024.03.31 @ 20:14:27 End 2024.04.07 @ 17:39:37 Sessions 7 Manual Loads 0 Difficulty Adventurer Special Mode None Game No. 1 Rogue 0 Adventurer 1 Explorer 0 Win Type - Total 0 Types 0/0/0/0/0/0/0/0/0 Lore% 9 Gallery% 9 Achievement% 9 Wizard Run 0 Options --------- Layout 0 ASCII 0 Keyboard 0 Movement Arrows Keybinds 0 Fullscreen 1 Font 24/Smallcaps Map View 76x50 Zoom Use 0% Tactical HUD 0 Map Filters NONE Filters NONE Steam 1 RUN: d68c16c9-c3e6-4b70-876d-16eaa5e85ada